[Event "Early-Titled-Tuesday-Blitz-April-23-2024"]
[Site "Chess.com"]
[Date "2024.04.23"]
[Round "4"]
[White "Hikaru"]
[Black "baki83"]
[Result "1-0"]
[WhiteElo "3294"]
[BlackElo "2913"]
[TimeControl "180+1"]
[EndTime "8:40:12 PDT"]
[Termination "Hikaru won on time"]

1. h4 {[%clk 0:03:00.9]} 1... d5 {[%clk 0:03:00]} 2. c4 {[%clk 0:02:49.4]} 2...
d4 {[%clk 0:03:00.1]} 3. d3 {[%clk 0:02:46.3]} 3... e5 {[%clk 0:02:59.5]} 4. e4
{[%clk 0:02:45.6]} 4... Nc6 {[%clk 0:02:59.4]} 5. a3 {[%clk 0:02:44]} 5... a5
{[%clk 0:02:59.1]} 6. g3 {[%clk 0:02:43]} 6... h5 {[%clk 0:02:59]} 7. Bh3 {[%clk
0:02:42.7]} 7... Bxh3 {[%clk 0:02:57.8]} 8. Nxh3 {[%clk 0:02:43.6]} 8... Qd7
{[%clk 0:02:56.6]} 9. f4 {[%clk 0:02:40]} 9... Nf6 {[%clk 0:02:54.4]} 10. Nf2
{[%clk 0:02:39.8]} 10... exf4 {[%clk 0:02:48.2]} 11. gxf4 {[%clk 0:02:39.7]}
11... Ng4 {[%clk 0:02:47.5]} 12. Qf3 {[%clk 0:02:36.6]} 12... f5 {[%clk
0:02:39.7]} 13. e5 {[%clk 0:02:36.8]} 13... Be7 {[%clk 0:02:32.9]} 14. Nd2
{[%clk 0:02:35.1]} 14... Ne3 {[%clk 0:02:29.6]} 15. Ke2 {[%clk 0:02:35.1]} 15...
a4 {[%clk 0:02:20]} 16. b4 {[%clk 0:02:26.5]} 16... axb3 {[%clk 0:02:10]} 17.
Nxb3 {[%clk 0:02:25.7]} 17... Nc2 {[%clk 0:02:04.2]} 18. Rb1 {[%clk 0:02:25.4]}
18... Bxa3 {[%clk 0:02:03.8]} 19. Bd2 {[%clk 0:02:17.3]} 19... Be7 {[%clk
0:01:30.6]} 20. Qd5 {[%clk 0:02:04.2]} 20... N2b4 {[%clk 0:01:00.5]} 21. Qxd7+
{[%clk 0:01:36.6]} 21... Kxd7 {[%clk 0:01:00.6]} 22. Rbg1 {[%clk 0:01:37.4]}
22... Rhg8 {[%clk 0:00:54.7]} 23. Rg6 {[%clk 0:01:37.5]} 23... Ra2 {[%clk
0:00:49.7]} 24. Rhg1 {[%clk 0:01:34.1]} 24... Rb2 {[%clk 0:00:49.8]} 25. Nc1
{[%clk 0:01:29.8]} 25... Bxh4 {[%clk 0:00:40.8]} 26. Nd1 {[%clk 0:01:28.8]}
26... Rc2 {[%clk 0:00:37]} 27. Nb3 {[%clk 0:01:27.8]} 27... Na2 {[%clk
0:00:21.4]} 28. Kf3 {[%clk 0:01:13.4]} 28... Nc3 {[%clk 0:00:15.9]} 29. Bxc3
{[%clk 0:00:58.9]} 29... dxc3 {[%clk 0:00:16.8]} 30. d4 {[%clk 0:00:59.6]} 30...
Ke8 {[%clk 0:00:10.6]} 31. d5 {[%clk 0:00:56.8]} 31... Ne7 {[%clk 0:00:10.9]}
32. R6g2 {[%clk 0:00:56.1]} 32... Rxg2 {[%clk 0:00:10.7]} 33. Rxg2 {[%clk
0:00:57]} 33... g5 {[%clk 0:00:10.1]} 34. Nxc3 {[%clk 0:00:55.8]} 34... g4+
{[%clk 0:00:10.1]} 35. Ke2 {[%clk 0:00:55.9]} 35... Ng6 {[%clk 0:00:10.5]} 36.
Ke3 {[%clk 0:00:55.1]} 36... Be1 {[%clk 0:00:10.5]} 37. Ne2 {[%clk 0:00:55.6]}
37... h4 {[%clk 0:00:10.9]} 38. Nbd4 {[%clk 0:00:55.1]} 38... h3 {[%clk
0:00:10.7]} 39. Rg1 {[%clk 0:00:55.7]} 39... Bb4 {[%clk 0:00:08.5]} 40. Nxf5
{[%clk 0:00:55.9]} 40... Bc5+ {[%clk 0:00:09.1]} 41. Ned4 {[%clk 0:00:56]} 41...
Ne7 {[%clk 0:00:08.9]} 42. Ng3 {[%clk 0:00:53.6]} 42... Rh8 {[%clk 0:00:08.8]}
43. Rh1 {[%clk 0:00:51.7]} 43... h2 {[%clk 0:00:09.3]} 44. Ke4 {[%clk
0:00:47.1]} 44... Bxd4 {[%clk 0:00:09.1]} 45. Kxd4 {[%clk 0:00:44.9]} 45... Rh3
{[%clk 0:00:09.9]} 46. Ke4 {[%clk 0:00:44.1]} 46... Rxg3 {[%clk 0:00:09.2]} 47.
Rxh2 {[%clk 0:00:44.8]} 47... Rh3 {[%clk 0:00:09.6]} 48. Rg2 {[%clk 0:00:45.5]}
48... g3 {[%clk 0:00:10.1]} 49. c5 {[%clk 0:00:45.6]} 49... c6 {[%clk
0:00:09.6]} 50. d6 {[%clk 0:00:44.7]} 50... Nd5 {[%clk 0:00:10.1]} 51. e6 {[%clk
0:00:45.4]} 51... Nf6+ {[%clk 0:00:09]} 52. Kf5 {[%clk 0:00:43.6]} 52... Nd5
{[%clk 0:00:09.1]} 53. Ke4 {[%clk 0:00:42.1]} 53... Nf6+ {[%clk 0:00:08.7]} 54.
Kd4 {[%clk 0:00:40.8]} 54... Nd5 {[%clk 0:00:08.5]} 55. Ra2 {[%clk 0:00:40.9]}
55... Kf8 {[%clk 0:00:07.4]} 56. d7 {[%clk 0:00:37.5]} 56... Ke7 {[%clk
0:00:05.5]} 57. Ra8 {[%clk 0:00:36.8]} 1-0

[Event "Early-Titled-Tuesday-Blitz-April-23-2024"]
[Site "Chess.com"]
[Date "2024.04.23"]
[Round "4"]
[White "goodluck06"]
[Black "Flaccidmoves"]
[Result "1-0"]
[WhiteElo "2680"]
[BlackElo "2455"]
[TimeControl "180+1"]
[EndTime "8:40:14 PDT"]
[Termination "goodluck06 won by resignation"]

1. c4 {[%clk 0:02:52.3]} 1... e5 {[%clk 0:02:57.9]} 2. Nc3 {[%clk 0:02:52.1]}
2... Nf6 {[%clk 0:02:57.8]} 3. Nf3 {[%clk 0:02:52]} 3... Nc6 {[%clk 0:02:53.1]}
4. e3 {[%clk 0:02:50]} 4... d5 {[%clk 0:02:46.7]} 5. cxd5 {[%clk 0:02:49.5]}
5... Nxd5 {[%clk 0:02:47.6]} 6. Bb5 {[%clk 0:02:46.7]} 6... Nxc3 {[%clk
0:02:48.1]} 7. bxc3 {[%clk 0:02:46.7]} 7... Bd6 {[%clk 0:02:48.7]} 8. e4 {[%clk
0:02:34.8]} 8... O-O {[%clk 0:02:46.6]} 9. O-O {[%clk 0:02:34.9]} 9... Bg4
{[%clk 0:02:40.8]} 10. h3 {[%clk 0:02:34.3]} 10... Bh5 {[%clk 0:02:39.9]} 11. g4
{[%clk 0:02:30.4]} 11... Bg6 {[%clk 0:02:39.4]} 12. Bxc6 {[%clk 0:02:24]} 12...
bxc6 {[%clk 0:02:39.2]} 13. d3 {[%clk 0:02:24.7]} 13... f6 {[%clk 0:02:32.4]}
14. Be3 {[%clk 0:02:23.5]} 14... a5 {[%clk 0:02:22.1]} 15. Qa4 {[%clk 0:02:21]}
15... Qd7 {[%clk 0:02:20.8]} 16. Nh4 {[%clk 0:02:10]} 16... Bf7 {[%clk
0:02:08.9]} 17. Rab1 {[%clk 0:02:03.4]} 17... g6 {[%clk 0:01:53.2]} 18. f3
{[%clk 0:01:46.1]} 18... Kg7 {[%clk 0:01:48]} 19. Ng2 {[%clk 0:01:41.9]} 19...
Rh8 {[%clk 0:01:26.3]} 20. h4 {[%clk 0:01:08.2]} 20... h5 {[%clk 0:01:23.4]} 21.
g5 {[%clk 0:01:08.6]} 21... f5 {[%clk 0:00:46.6]} 22. d4 {[%clk 0:01:03.6]}
22... fxe4 {[%clk 0:00:37.6]} 23. fxe4 {[%clk 0:01:01.7]} 23... Rhf8 {[%clk
0:00:19.4]} 24. Rf6 {[%clk 0:00:32.6]} 24... Bg8 {[%clk 0:00:09]} 25. Rbf1
{[%clk 0:00:29.9]} 25... Be7 {[%clk 0:00:02.9]} 26. dxe5 {[%clk 0:00:26.6]}
26... Bxf6 {[%clk 0:00:02.8]} 27. gxf6+ {[%clk 0:00:20.6]} 27... Kh7 {[%clk
0:00:03.4]} 28. Bc5 {[%clk 0:00:16.1]} 28... Qg4 {[%clk 0:00:03.7]} 29. Bxf8
{[%clk 0:00:15.5]} 29... Rxf8 {[%clk 0:00:04.6]} 30. Qxa5 {[%clk 0:00:14.6]}
30... Qxe4 {[%clk 0:00:04.1]} 31. Qxc7+ {[%clk 0:00:14.6]} 31... Rf7 {[%clk
0:00:04]} 32. Qd6 {[%clk 0:00:14.1]} 32... Ra7 {[%clk 0:00:03.8]} 33. Qd2 {[%clk
0:00:10.8]} 33... Bd5 {[%clk 0:00:04.1]} 34. Rf2 {[%clk 0:00:07.4]} 34... Qxe5
{[%clk 0:00:04.5]} 35. Qf4 {[%clk 0:00:04.9]} 35... Rf7 {[%clk 0:00:05]} 36. Rf3
{[%clk 0:00:04.5]} 36... Qe2 {[%clk 0:00:03.8]} 37. Rf2 {[%clk 0:00:04.5]} 37...
Qd1+ {[%clk 0:00:03]} 38. Kh2 {[%clk 0:00:04.9]} 38... Qg4 {[%clk 0:00:03.6]}
39. Qxg4 {[%clk 0:00:05.2]} 39... hxg4 {[%clk 0:00:04.5]} 40. Ne3 {[%clk
0:00:05.5]} 40... Kg8 {[%clk 0:00:04.1]} 41. Nxg4 {[%clk 0:00:05.3]} 41... Be6
{[%clk 0:00:03.9]} 42. Nh6+ {[%clk 0:00:05.5]} 42... Kf8 {[%clk 0:00:03.9]} 43.
Nxf7 {[%clk 0:00:06.1]} 43... Kxf7 {[%clk 0:00:04.8]} 44. a4 {[%clk 0:00:06.2]}
44... Bf5 {[%clk 0:00:05.2]} 45. a5 {[%clk 0:00:06.5]} 1-0

[Event "Early-Titled-Tuesday-Blitz-April-23-2024"]
[Site "Chess.com"]
[Date "2024.04.23"]
[Round "4"]
[White "MetiForce"]
[Black "Alexchess1984"]
[Result "0-1"]
[WhiteElo "2928"]
[BlackElo "2651"]
[TimeControl "180+1"]
[EndTime "8:40:17 PDT"]
[Termination "Alexchess1984 won by checkmate"]

1. b4 {[%clk 0:03:00.9]} 1... e6 {[%clk 0:03:00.1]} 2. Bb2 {[%clk 0:03:00.7]}
2... f5 {[%clk 0:02:59.9]} 3. Nf3 {[%clk 0:02:58.8]} 3... Nf6 {[%clk 0:03:00.4]}
4. a3 {[%clk 0:02:59.3]} 4... Be7 {[%clk 0:03:00.1]} 5. h3 {[%clk 0:02:59.9]}
5... c6 {[%clk 0:02:56.9]} 6. g4 {[%clk 0:02:59.7]} 6... O-O {[%clk 0:02:52.3]}
7. gxf5 {[%clk 0:02:54.4]} 7... exf5 {[%clk 0:02:51.5]} 8. Rg1 {[%clk
0:02:54.8]} 8... d5 {[%clk 0:02:48.4]} 9. d3 {[%clk 0:02:54.1]} 9... Kh8 {[%clk
0:02:43.4]} 10. Nbd2 {[%clk 0:02:53]} 10... Be6 {[%clk 0:02:43]} 11. Nb3 {[%clk
0:02:52.8]} 11... Bg8 {[%clk 0:02:36.4]} 12. Qd2 {[%clk 0:02:52]} 12... Nh5
{[%clk 0:02:31.6]} 13. Nbd4 {[%clk 0:02:48.9]} 13... Bf6 {[%clk 0:02:26.7]} 14.
O-O-O {[%clk 0:02:46.8]} 14... a5 {[%clk 0:02:23.6]} 15. bxa5 {[%clk 0:02:42.7]}
15... c5 {[%clk 0:02:20.3]} 16. Nb3 {[%clk 0:02:41.3]} 16... Bxb2+ {[%clk
0:02:17.5]} 17. Kxb2 {[%clk 0:02:42.2]} 17... Nd7 {[%clk 0:02:07.3]} 18. Rg5
{[%clk 0:02:41.1]} 18... Qf6+ {[%clk 0:02:01.3]} 19. Qc3 {[%clk 0:02:40.6]}
19... d4 {[%clk 0:02:00.2]} 20. Qd2 {[%clk 0:02:41.2]} 20... g6 {[%clk
0:01:48.9]} 21. h4 {[%clk 0:02:41]} 21... b5 {[%clk 0:01:44.3]} 22. Bh3 {[%clk
0:02:36.9]} 22... Rfe8 {[%clk 0:01:33.6]} 23. Bxf5 {[%clk 0:02:36.4]} 23... Ne5
{[%clk 0:01:09.7]} 24. Be4 {[%clk 0:02:32.4]} 24... Nxf3 {[%clk 0:01:08.2]} 25.
exf3 {[%clk 0:02:32.1]} 25... Rad8 {[%clk 0:00:56.2]} 26. Nxc5 {[%clk
0:02:31.8]} 26... Qf7 {[%clk 0:00:53.1]} 27. Ra1 {[%clk 0:02:29.1]} 27... Nf4
{[%clk 0:00:40.8]} 28. Qb4 {[%clk 0:02:28.9]} 28... Ne2 {[%clk 0:00:32.8]} 29.
a6 {[%clk 0:02:27.8]} 29... Nc3 {[%clk 0:00:30.1]} 30. Nb7 {[%clk 0:02:23.7]}
30... Na4+ {[%clk 0:00:28.5]} 31. Kc1 {[%clk 0:02:22.4]} 31... Qf4+ {[%clk
0:00:26.7]} 32. Qd2 {[%clk 0:02:22.5]} 32... Qxh4 {[%clk 0:00:24.3]} 33. Rg1
{[%clk 0:02:21.6]} 33... Rc8 {[%clk 0:00:21.6]} 34. Nd6 {[%clk 0:02:18.9]} 34...
Bb3 {[%clk 0:00:16.5]} 35. Nxe8 {[%clk 0:02:10.3]} 35... Rxc2+ {[%clk
0:00:15.8]} 36. Qxc2 {[%clk 0:02:11]} 36... Bxc2 {[%clk 0:00:14.8]} 37. Kxc2
{[%clk 0:02:11.9]} 37... Qxf2+ {[%clk 0:00:13.4]} 38. Kc1 {[%clk 0:02:05.3]}
38... Qb2+ {[%clk 0:00:12.9]} 39. Kd1 {[%clk 0:02:05.9]} 39... Qxa1+ {[%clk
0:00:13.4]} 40. Ke2 {[%clk 0:02:06.4]} 40... Qxg1 {[%clk 0:00:13]} 41. a7 {[%clk
0:02:03.3]} 41... Qg2+ {[%clk 0:00:13]} 42. Ke1 {[%clk 0:02:03.3]} 42... Qg1+
{[%clk 0:00:13.4]} 43. Ke2 {[%clk 0:01:58]} 43... Qe3+ {[%clk 0:00:13.7]} 44.
Kf1 {[%clk 0:01:58.1]} 44... Qc1+ {[%clk 0:00:12.8]} 45. Kg2 {[%clk 0:01:58.6]}
45... Nb6 {[%clk 0:00:13.3]} 46. Nd6 {[%clk 0:01:52.8]} 46... Qxa3 {[%clk
0:00:12.3]} 47. Nxb5 {[%clk 0:01:52.8]} 47... Qa5 {[%clk 0:00:11.3]} 48. Bc6
{[%clk 0:01:53.3]} 48... Kg7 {[%clk 0:00:09.4]} 49. f4 {[%clk 0:01:45.8]} 49...
h5 {[%clk 0:00:09.6]} 50. Kf3 {[%clk 0:01:46.2]} 50... Qd2 {[%clk 0:00:08.9]}
51. Be4 {[%clk 0:01:43.5]} 51... Qe3+ {[%clk 0:00:08.8]} 52. Kg2 {[%clk
0:01:41.8]} 52... h4 {[%clk 0:00:08.8]} 53. Nd6 {[%clk 0:01:41]} 53... Qxf4
{[%clk 0:00:07.1]} 54. Nc4 {[%clk 0:01:38.3]} 54... Qg3+ {[%clk 0:00:05.7]} 55.
Kf1 {[%clk 0:01:05.6]} 55... Qc7 {[%clk 0:00:06.6]} 56. Nxb6 {[%clk 0:01:04.9]}
56... Qxa7 {[%clk 0:00:06.5]} 57. Nd5 {[%clk 0:01:04.8]} 57... Qf7+ {[%clk
0:00:06.4]} 58. Kg2 {[%clk 0:01:03.8]} 58... g5 {[%clk 0:00:06.7]} 59. Kh3
{[%clk 0:01:03]} 59... Qf2 {[%clk 0:00:06.5]} 60. Kg4 {[%clk 0:01:02.7]} 60...
Kh6 {[%clk 0:00:06.2]} 61. Ne7 {[%clk 0:00:59.3]} 61... Qf4+ {[%clk 0:00:06.1]}
62. Kh3 {[%clk 0:00:59.1]} 62... Qg3# {[%clk 0:00:07]} 0-1

[Event "Early-Titled-Tuesday-Blitz-April-23-2024"]
[Site "Chess.com"]
[Date "2024.04.23"]
[Round "4"]
[White "Bauman_Guy"]
[Black "jinbojinbo"]
[Result "0-1"]
[WhiteElo "2896"]
[BlackElo "2641"]
[TimeControl "180+1"]
[EndTime "8:40:19 PDT"]
[Termination "jinbojinbo won by checkmate"]

1. e4 {[%clk 0:03:00.9]} 1... e5 {[%clk 0:03:00]} 2. Nf3 {[%clk 0:03:01.3]} 2...
Nc6 {[%clk 0:03:00.1]} 3. Bb5 {[%clk 0:03:02]} 3... a6 {[%clk 0:03:00.1]} 4. Ba4
{[%clk 0:03:02.2]} 4... Nf6 {[%clk 0:03:00.7]} 5. O-O {[%clk 0:03:02.7]} 5... d6
{[%clk 0:03:01]} 6. c3 {[%clk 0:03:02.8]} 6... Bd7 {[%clk 0:03:00.6]} 7. d3
{[%clk 0:03:03.2]} 7... g6 {[%clk 0:02:59.7]} 8. Nbd2 {[%clk 0:03:03.9]} 8...
Bg7 {[%clk 0:02:59.9]} 9. Re1 {[%clk 0:03:04.6]} 9... O-O {[%clk 0:03:00.2]} 10.
Nf1 {[%clk 0:03:05.3]} 10... Re8 {[%clk 0:03:00]} 11. Ng3 {[%clk 0:03:04.5]}
11... b5 {[%clk 0:02:59.7]} 12. Bc2 {[%clk 0:03:04.1]} 12... a5 {[%clk
0:02:58.7]} 13. h3 {[%clk 0:03:03.5]} 13... a4 {[%clk 0:02:58.7]} 14. d4 {[%clk
0:03:01.9]} 14... Na5 {[%clk 0:02:56.7]} 15. Rb1 {[%clk 0:03:01.1]} 15... c5
{[%clk 0:02:54.7]} 16. dxe5 {[%clk 0:02:58.8]} 16... dxe5 {[%clk 0:02:54.5]} 17.
Bg5 {[%clk 0:02:57.8]} 17... Qc7 {[%clk 0:02:52]} 18. Qe2 {[%clk 0:02:55]} 18...
Be6 {[%clk 0:02:41.3]} 19. b3 {[%clk 0:02:53.9]} 19... axb3 {[%clk 0:02:39.4]}
20. axb3 {[%clk 0:02:54.8]} 20... c4 {[%clk 0:02:39.7]} 21. b4 {[%clk
0:02:54.7]} 21... Nb3 {[%clk 0:02:37.5]} 22. Rb2 {[%clk 0:02:50.4]} 22... Nd7
{[%clk 0:02:31.1]} 23. Be3 {[%clk 0:02:49.3]} 23... Nb6 {[%clk 0:02:29.6]} 24.
Ng5 {[%clk 0:02:48.2]} 24... Na4 {[%clk 0:02:23.5]} 25. Nxe6 {[%clk 0:02:40.7]}
25... Rxe6 {[%clk 0:02:23.4]} 26. Rxb3 {[%clk 0:02:04.8]} 26... cxb3 {[%clk
0:02:21.5]} 27. Bxb3 {[%clk 0:02:05.7]} 27... Nxc3 {[%clk 0:02:10.1]} 28. Qg4
{[%clk 0:02:03.2]} 28... Rea6 {[%clk 0:02:03.9]} 29. Bc5 {[%clk 0:01:47.4]}
29... Ra1 {[%clk 0:01:58.4]} 30. Rxa1 {[%clk 0:01:46.5]} 30... Rxa1+ {[%clk
0:01:59.3]} 31. Kh2 {[%clk 0:01:47.4]} 31... Ra3 {[%clk 0:01:48.4]} 32. Bd5
{[%clk 0:01:46.7]} 32... Nxd5 {[%clk 0:01:45.7]} 33. exd5 {[%clk 0:01:47.6]}
33... f5 {[%clk 0:01:41.4]} 34. Qg5 {[%clk 0:01:31.9]} 34... Qd7 {[%clk
0:01:35]} 35. d6 {[%clk 0:01:30.2]} 35... e4 {[%clk 0:01:32.2]} 36. Qd2 {[%clk
0:01:10.3]} 36... Bf6 {[%clk 0:01:08.7]} 37. Qd5+ {[%clk 0:01:06.6]} 37... Kg7
{[%clk 0:01:08.7]} 38. Ne2 {[%clk 0:00:55.5]} 38... Qf7 {[%clk 0:00:48.7]} 39.
Qc6 {[%clk 0:00:48.5]} 39... Be5+ {[%clk 0:00:44.4]} 40. g3 {[%clk 0:00:48.9]}
40... Rd3 {[%clk 0:00:22.7]} 41. Nf4 {[%clk 0:00:47.2]} 41... Bxf4 {[%clk
0:00:20.8]} 42. gxf4 {[%clk 0:00:48.1]} 42... Qb3 {[%clk 0:00:20.1]} 43. Be3
{[%clk 0:00:42.5]} 43... Qd5 {[%clk 0:00:18.7]} 44. Qc7+ {[%clk 0:00:33.5]}
44... Kh6 {[%clk 0:00:18.5]} 45. Bc5 {[%clk 0:00:32.4]} 45... e3 {[%clk
0:00:16]} 46. Bxe3 {[%clk 0:00:20.6]} 46... Rd1 {[%clk 0:00:10.9]} 47. Qe7
{[%clk 0:00:18.5]} 47... Qh1+ {[%clk 0:00:10.2]} 48. Kg3 {[%clk 0:00:18.8]}
48... Rg1+ {[%clk 0:00:10.5]} 49. Kh4 {[%clk 0:00:19.3]} 49... Rg4# {[%clk
0:00:10.9]} 0-1

[Event "Early-Titled-Tuesday-Blitz-April-23-2024"]
[Site "Chess.com"]
[Date "2024.04.23"]
[Round "4"]
[White "HajiyevKanan"]
[Black "DanielDardha2005"]
[Result "1-0"]
[WhiteElo "2624"]
[BlackElo "2853"]
[TimeControl "180+1"]
[EndTime "8:40:20 PDT"]
[Termination "HajiyevKanan won by resignation"]

1. d4 {[%clk 0:03:00.9]} 1... d5 {[%clk 0:02:00.8]} 2. c4 {[%clk 0:02:59.5]}
2... dxc4 {[%clk 0:02:00.9]} 3. e3 {[%clk 0:02:59.5]} 3... Nf6 {[%clk
0:02:00.6]} 4. Bxc4 {[%clk 0:02:59.6]} 4... a6 {[%clk 0:02:01]} 5. Nf3 {[%clk
0:02:59.1]} 5... e6 {[%clk 0:02:01]} 6. O-O {[%clk 0:02:59.1]} 6... c5 {[%clk
0:02:01.5]} 7. Nc3 {[%clk 0:02:58]} 7... b5 {[%clk 0:02:00.1]} 8. Be2 {[%clk
0:02:57.8]} 8... Bb7 {[%clk 0:02:00.1]} 9. b3 {[%clk 0:02:51.1]} 9... Nbd7
{[%clk 0:01:57.8]} 10. Bb2 {[%clk 0:02:50.2]} 10... cxd4 {[%clk 0:01:55]} 11.
Nxd4 {[%clk 0:02:48.2]} 11... Rc8 {[%clk 0:01:55.2]} 12. Bf3 {[%clk 0:02:47]}
12... Qb6 {[%clk 0:01:53.5]} 13. Bxb7 {[%clk 0:02:46.4]} 13... Qxb7 {[%clk
0:01:54.4]} 14. Rc1 {[%clk 0:02:41.3]} 14... Be7 {[%clk 0:01:48.9]} 15. Qf3
{[%clk 0:02:37.9]} 15... Qxf3 {[%clk 0:01:48.6]} 16. gxf3 {[%clk 0:02:38.4]}
16... O-O {[%clk 0:01:35.2]} 17. Ne4 {[%clk 0:02:38.4]} 17... Nxe4 {[%clk
0:01:30.8]} 18. fxe4 {[%clk 0:02:39.3]} 18... Nc5 {[%clk 0:01:31.6]} 19. Ba3
{[%clk 0:02:32.6]} 19... Bd6 {[%clk 0:00:22.5]} 20. e5 {[%clk 0:02:26.9]} 20...
Be7 {[%clk 0:00:03.2]} 21. Rc2 {[%clk 0:02:27.2]} 21... Rc7 {[%clk 0:00:02.2]}
22. Rfc1 {[%clk 0:02:22.2]} 22... Rfc8 {[%clk 0:00:01.8]} 23. b4 {[%clk
0:02:12]} 23... a5 {[%clk 0:00:01.8]} 24. bxc5 {[%clk 0:01:57.2]} 24... b4
{[%clk 0:00:01.7]} 25. Bb2 {[%clk 0:01:53]} 25... Rxc5 {[%clk 0:00:02.2]} 26.
Rxc5 {[%clk 0:01:51.2]} 26... Rxc5 {[%clk 0:00:03.1]} 27. Rxc5 {[%clk
0:01:45.8]} 27... Bxc5 {[%clk 0:00:04]} 28. Nb3 {[%clk 0:01:45.9]} 28... Bb6
{[%clk 0:00:04.6]} 29. Bd4 {[%clk 0:01:45.1]} 29... Bc7 {[%clk 0:00:03.4]} 30.
f4 {[%clk 0:01:42.7]} 30... g5 {[%clk 0:00:02.5]} 31. fxg5 {[%clk 0:01:36.4]}
31... Kg7 {[%clk 0:00:03.1]} 32. Kf2 {[%clk 0:01:29.1]} 32... Kg6 {[%clk
0:00:03.3]} 33. h4 {[%clk 0:01:27.3]} 33... Kf5 {[%clk 0:00:02.3]} 34. Kf3
{[%clk 0:01:19.5]} 34... Kg6 {[%clk 0:00:01.7]} 35. Kg4 {[%clk 0:01:18.8]} 35...
h5+ {[%clk 0:00:02]} 36. Kf4 {[%clk 0:01:18.3]} 36... Bd8 {[%clk 0:00:01.7]} 37.
Bc5 {[%clk 0:01:14.8]} 37... a4 {[%clk 0:00:01.3]} 38. Nd4 {[%clk 0:01:14.2]}
38... Ba5 {[%clk 0:00:01.4]} 39. Ke4 {[%clk 0:00:56.5]} 39... b3 {[%clk
0:00:02.1]} 40. axb3 {[%clk 0:00:56.5]} 40... axb3 {[%clk 0:00:03]} 41. Nxb3
{[%clk 0:00:56.9]} 41... Be1 {[%clk 0:00:03.8]} 42. Kf4 {[%clk 0:00:46.5]} 42...
Bxh4 {[%clk 0:00:04.7]} 43. Be7 {[%clk 0:00:46.7]} 43... Be1 {[%clk 0:00:02.3]}
44. Nd4 {[%clk 0:00:46.7]} 44... Bc3 {[%clk 0:00:01.3]} 45. Nf3 {[%clk
0:00:46.4]} 45... Bb2 {[%clk 0:00:01.3]} 46. Nh4+ {[%clk 0:00:43.6]} 46... Kg7
{[%clk 0:00:01.9]} 47. Bf6+ {[%clk 0:00:43.7]} 47... Kh7 {[%clk 0:00:02.5]} 48.
Kg3 {[%clk 0:00:34.9]} 48... Bc1 {[%clk 0:00:02.3]} 49. e4 {[%clk 0:00:33]}
49... Bb2 {[%clk 0:00:01.9]} 50. Nf3 {[%clk 0:00:31.9]} 50... Bc1 {[%clk
0:00:02]} 51. Kh4 {[%clk 0:00:31.8]} 51... Kg6 {[%clk 0:00:01.6]} 52. Nd4 {[%clk
0:00:30.7]} 52... Bb2 {[%clk 0:00:01.5]} 53. Ne2 {[%clk 0:00:31]} 53... Bc1
{[%clk 0:00:01.2]} 54. Nxc1 {[%clk 0:00:30]} 1-0

[Event "Early-Titled-Tuesday-Blitz-April-23-2024"]
[Site "Chess.com"]
[Date "2024.04.23"]
[Round "4"]
[White "Djager97"]
[Black "ViktoriyaTarasova"]
[Result "1-0"]
[WhiteElo "2553"]
[BlackElo "2363"]
[TimeControl "180+1"]
[EndTime "8:40:20 PDT"]
[Termination "Djager97 won by checkmate"]

1. e4 {[%clk 0:03:00.9]} 1... e5 {[%clk 0:02:59.7]} 2. Nf3 {[%clk 0:03:00.9]}
2... Nc6 {[%clk 0:02:59.4]} 3. d4 {[%clk 0:03:01.1]} 3... exd4 {[%clk
0:02:59.1]} 4. Nxd4 {[%clk 0:03:02]} 4... Nf6 {[%clk 0:02:59.2]} 5. Nxc6 {[%clk
0:03:02.2]} 5... bxc6 {[%clk 0:02:58.9]} 6. e5 {[%clk 0:03:02.7]} 6... Qe7
{[%clk 0:02:59.3]} 7. Qe2 {[%clk 0:03:03.3]} 7... Nd5 {[%clk 0:02:59.5]} 8. c4
{[%clk 0:03:04]} 8... Nb6 {[%clk 0:02:59]} 9. Nc3 {[%clk 0:03:04]} 9... Qe6
{[%clk 0:02:58.5]} 10. Qe4 {[%clk 0:03:00]} 10... Bb4 {[%clk 0:02:52.9]} 11. Bd2
{[%clk 0:02:55.8]} 11... O-O {[%clk 0:02:52.3]} 12. Bd3 {[%clk 0:02:55.2]} 12...
g6 {[%clk 0:02:39.5]} 13. O-O {[%clk 0:02:52.4]} 13... a5 {[%clk 0:02:31.2]} 14.
Rae1 {[%clk 0:02:50.4]} 14... d5 {[%clk 0:02:29]} 15. exd6 {[%clk 0:02:47]}
15... Qxd6 {[%clk 0:02:24.7]} 16. Bf4 {[%clk 0:02:36.8]} 16... Qd8 {[%clk
0:02:22.1]} 17. Qf3 {[%clk 0:02:24]} 17... Be6 {[%clk 0:02:11.9]} 18. Rd1 {[%clk
0:02:06.7]} 18... Bxc3 {[%clk 0:01:53.4]} 19. bxc3 {[%clk 0:02:00.6]} 19... Qf6
{[%clk 0:01:53.2]} 20. Qg3 {[%clk 0:01:52.9]} 20... Bxc4 {[%clk 0:01:41.3]} 21.
Bxc7 {[%clk 0:01:52.6]} 21... Bxd3 {[%clk 0:01:39.5]} 22. Rxd3 {[%clk
0:01:53.5]} 22... Nd5 {[%clk 0:01:30.1]} 23. Be5 {[%clk 0:01:53.3]} 23... Qe6
{[%clk 0:01:30.7]} 24. c4 {[%clk 0:01:53.3]} 24... Ne7 {[%clk 0:00:58.7]} 25.
Ba1 {[%clk 0:01:38.1]} 25... Nf5 {[%clk 0:00:42.7]} 26. Qg5 {[%clk 0:01:38.1]}
26... f6 {[%clk 0:00:41.6]} 27. Qd2 {[%clk 0:01:32.4]} 27... Rae8 {[%clk
0:00:31]} 28. h3 {[%clk 0:01:24.1]} 28... a4 {[%clk 0:00:29.9]} 29. c5 {[%clk
0:01:03.8]} 29... Qe2 {[%clk 0:00:28.7]} 30. Qc3 {[%clk 0:00:50.7]} 30... Qxa2
{[%clk 0:00:27.7]} 31. Rd7 {[%clk 0:00:50.7]} 31... Re7 {[%clk 0:00:24.7]} 32.
Rfd1 {[%clk 0:00:36.2]} 32... Qb3 {[%clk 0:00:18.5]} 33. Qc1 {[%clk 0:00:17.7]}
33... a3 {[%clk 0:00:16.5]} 34. Rxe7 {[%clk 0:00:16.9]} 34... Nxe7 {[%clk
0:00:16.1]} 35. Rd7 {[%clk 0:00:12.8]} 35... a2 {[%clk 0:00:06.8]} 36. Rxe7
{[%clk 0:00:10.9]} 36... Qb1 {[%clk 0:00:07.1]} 37. Re1 {[%clk 0:00:11.4]} 37...
Rb8 {[%clk 0:00:05.8]} 38. Qc4+ {[%clk 0:00:08.1]} 38... Kg7 {[%clk 0:00:03.9]}
39. Bxf6+ {[%clk 0:00:03.9]} 39... Kxf6 {[%clk 0:00:04.3]} 40. Qd4+ {[%clk
0:00:02.8]} 40... Kf7 {[%clk 0:00:04.6]} 41. Qd7+ {[%clk 0:00:02.5]} 41... Kf6
{[%clk 0:00:04.8]} 42. Qe7+ {[%clk 0:00:02.8]} 42... Kf5 {[%clk 0:00:04.7]} 43.
g4+ {[%clk 0:00:03.2]} 43... Kf4 {[%clk 0:00:04.9]} 44. Qe5+ {[%clk 0:00:03.4]}
44... Kf3 {[%clk 0:00:05]} 45. Qe3# {[%clk 0:00:04.3]} 1-0